{"text_format":"3","workbook":"xlsx","n_sheets":3,"sheets":["Données de prospect","Ventes prévues ","Prévision mensuelle pondérée"],"not_rendered":{"charts":1,"images":2,"defined_names":9},"read":"whole","date_system":"1900"}

{"sheet":"Données de prospect","index":0,"n_rows":10,"n_cols":10,"rows_kept":10,"merged":[[2,1,2,2],[3,4,3,8],[4,1,4,8]]}
[]
[]
[null,"Suivi des prospects détaillé"]
[null,{"$f":"TODAY()","v":"2019-10-18"}]
[null,"Nom de l’entreprise\t\t\t\t\t\t\t\t\t\t",{"$nulls":7},"CONFIDENTIEL"]
[null,"Nom du responsable","Contact du prospect","Prospect \nSource","Prospect \nRégion","Prospect \nType","Opportunité potentielle","Chance \nde vente","Prévision \nà court terme","Prévision \npondérée"]
[null,"Adatum Corporation",null,"Site web","Nord","Stratégique",{"v":300000,"d":"300,000.00 €"},{"v":0.9,"d":"90%"},"Janvier",{"$f":"IFERROR(IF(DonnéesProspect[[#This Row],[Chance \nde vente]]<>\"\",DonnéesProspect[[#This Row],[Chance \nde vente]]*DonnéesProspect[[#This Row],[Opportunité potentielle]],\"\"),\"\")","v":{"v":270000,"d":"270,000.00 €"}}]
[null,"Adventure Works",null,"Événements de réseautage","Sud","Stratégique",{"v":200000,"d":"200,000.00 €"},{"v":0.1,"d":"10%"},"Février",{"$f":"IFERROR(IF(DonnéesProspect[[#This Row],[Chance \nde vente]]<>\"\",DonnéesProspect[[#This Row],[Chance \nde vente]]*DonnéesProspect[[#This Row],[Opportunité potentielle]],\"\"),\"\")","v":{"v":20000,"d":"20,000.00 €"}}]
[null,"Alpine Ski House",null,"Événements de réseautage","Nord","Tactique",{"v":100000,"d":"100,000.00 €"},{"v":0.2,"d":"20%"},"Mars",{"$f":"IFERROR(IF(DonnéesProspect[[#This Row],[Chance \nde vente]]<>\"\",DonnéesProspect[[#This Row],[Chance \nde vente]]*DonnéesProspect[[#This Row],[Opportunité potentielle]],\"\"),\"\")","v":{"v":20000,"d":"20,000.00 €"}}]
[null,"Total",{"$nulls":4},{"$f":"SUBTOTAL(109,DonnéesProspect[Opportunité potentielle])","v":{"v":600000,"d":"600,000.00 €"}},null,null,{"$f":"SUBTOTAL(109,DonnéesProspect[Prévision \npondérée])","v":{"v":310000,"d":"310,000.00 €"}}]

{"sheet":"Ventes prévues ","index":1,"n_rows":15,"n_cols":14,"rows_kept":15,"merged":[[0,5,0,9],[2,1,2,2],[4,1,4,11],[4,12,4,13]]}
[]
[]
[null,"Ventes prévues"]
[null,{"$f":"DateSuivi","v":"2019-10-18"}]
[null,{"$f":"'Données de prospect'!B5:I5","v":"Nom de l’entreprise\t\t\t\t\t\t\t\t\t\t"},{"$nulls":10},"CONFIDENTIEL"]
[null,"Nom du prospect","Janvier \nPrévision","Février \nPrévision","Mars \nPrévision","Avril \nPrévision","Mai \nPrévision","Juin \nPrévision","Juillet \nPrévision","Août \nPrévision","Septembre \nPrévision","Octobre \nPrévision","Novembre \nPrévision","Décembre \nPrévision"]
[null,{"$f":"IFERROR(IF(AND(DonnéesProspect[[#This Row],[Nom du responsable]] <> \"\", ROW(VentesPrévues[Nom du prospect])<>DernièreEntrée),DonnéesProspect[Nom du responsable], \"\"),\"\")","v":"Adatum Corporation"},{"$f":"IFERROR(IF(DonnéesProspect[[#This Row],[Prévision \nà court terme]] <>\"\",IF(DonnéesProspect[[#This Row],[Prévision \nà court terme]] = \"Janvier\",DonnéesProspect[Prévision \npondérée],0),\"\"),\"\")","v":{"v":270000,"d":"270,000 €"}},{"$f":"IFERROR(IF(DonnéesProspect[[#This Row],[Prévision \nà court terme]] <>\"\",IF(DonnéesProspect[[#This Row],[Prévision \nà court terme]] = \"Février\",DonnéesProspect[Prévision \npondérée],0),\"\"),\"\")","v":{"v":0,"d":"0 €"}},{"$f":"IFERROR(IF(DonnéesProspect[[#This Row],[Prévision \nà court terme]] <>\"\",IF(DonnéesProspect[[#This Row],[Prévision \nà court terme]] = \"Mars\",DonnéesProspect[Prévision \npondérée],0),\"\"),\"\")","v":{"v":0,"d":"0 €"}},{"$f":"IFERROR(IF(DonnéesProspect[[#This Row],[Prévision \nà court terme]] <>\"\",IF(DonnéesProspect[[#This Row],[Prévision \nà court terme]] = \"Avril\",DonnéesProspect[Prévision \npondérée],0),\"\"),\"\")","v":{"v":0,"d":"0 €"}},{"$f":"IFERROR(IF(DonnéesProspect[[#This Row],[Prévision \nà court terme]] <>\"\",IF(DonnéesProspect[[#This Row],[Prévision \nà court terme]] = \"Mai\",DonnéesProspect[Prévision \npondérée],0),\"\"),\"\")","v":{"v":0,"d":"0 €"}},{"$f":"IFERROR(IF(DonnéesProspect[[#This Row],[Prévision \nà court terme]] <>\"\",IF(DonnéesProspect[[#This Row],[Prévision \nà court terme]] = \"Juin\",DonnéesProspect[Prévision \npondérée],0),\"\"),\"\")","v":{"v":0,"d":"0 €"}},{"$f":"IFERROR(IF(DonnéesProspect[[#This Row],[Prévision \nà court terme]] <>\"\",IF(DonnéesProspect[[#This Row],[Prévision \nà court terme]] = \"Juillet\",DonnéesProspect[Prévision \npondérée],0),\"\"),\"\")","v":{"v":0,"d":"0 €"}},{"$f":"IFERROR(IF(DonnéesProspect[[#This Row],[Prévision \nà court terme]] <>\"\",IF(DonnéesProspect[[#This Row],[Prévision \nà court terme]] = \"Août\",DonnéesProspect[Prévision \npondérée],0),\"\"),\"\")","v":{"v":0,"d":"0 €"}},{"$f":"IFERROR(IF(DonnéesProspect[[#This Row],[Prévision \nà court terme]] <>\"\",IF(DonnéesProspect[[#This Row],[Prévision \nà court terme]] = \"Septembre\",DonnéesProspect[Prévision \npondérée],0),\"\"),\"\")","v":{"v":0,"d":"0 €"}},{"$f":"IFERROR(IF(DonnéesProspect[[#This Row],[Prévision \nà court terme]] <>\"\",IF(DonnéesProspect[[#This Row],[Prévision \nà court terme]] = \"Octobre\",DonnéesProspect[Prévision \npondérée],0),\"\"),\"\")","v":{"v":0,"d":"0 €"}},{"$f":"IFERROR(IF(DonnéesProspect[[#This Row],[Prévision \nà court terme]] <>\"\",IF(DonnéesProspect[[#This Row],[Prévision \nà court terme]] = \"Novembre\",DonnéesProspect[Prévision \npondérée],0),\"\"),\"\")","v":{"v":0,"d":"0 €"}},{"$f":"IFERROR(IF(DonnéesProspect[[#This Row],[Prévision \nà court terme]] <>\"\",IF(DonnéesProspect[[#This Row],[Prévision \nà court terme]] = \"Décembre\",DonnéesProspect[Prévision \npondérée],0),\"\"),\"\")","v":{"v":0,"d":"0 €"}}]
[null,{"$f":"IFERROR(IF(AND(DonnéesProspect[[#This Row],[Nom du responsable]] <> \"\", ROW(VentesPrévues[Nom du prospect])<>DernièreEntrée),DonnéesProspect[Nom du responsable], \"\"),\"\")","v":"Adventure Works"},{"$f":"IFERROR(IF(DonnéesProspect[[#This Row],[Prévision \nà court terme]] <>\"\",IF(DonnéesProspect[[#This Row],[Prévision \nà court terme]] = \"Janvier\",DonnéesProspect[Prévision \npondérée],0),\"\"),\"\")","v":{"v":0,"d":"0 €"}},{"$f":"IFERROR(IF(DonnéesProspect[[#This Row],[Prévision \nà court terme]] <>\"\",IF(DonnéesProspect[[#This Row],[Prévision \nà court terme]] = \"Février\",DonnéesProspect[Prévision \npondérée],0),\"\"),\"\")","v":{"v":20000,"d":"20,000 €"}},{"$f":"IFERROR(IF(DonnéesProspect[[#This Row],[Prévision \nà court terme]] <>\"\",IF(DonnéesProspect[[#This Row],[Prévision \nà court terme]] = \"Mars\",DonnéesProspect[Prévision \npondérée],0),\"\"),\"\")","v":{"v":0,"d":"0 €"}},{"$f":"IFERROR(IF(DonnéesProspect[[#This Row],[Prévision \nà court terme]] <>\"\",IF(DonnéesProspect[[#This Row],[Prévision \nà court terme]] = \"Avril\",DonnéesProspect[Prévision \npondérée],0),\"\"),\"\")","v":{"v":0,"d":"0 €"}},{"$f":"IFERROR(IF(DonnéesProspect[[#This Row],[Prévision \nà court terme]] <>\"\",IF(DonnéesProspect[[#This Row],[Prévision \nà court terme]] = \"Mai\",DonnéesProspect[Prévision \npondérée],0),\"\"),\"\")","v":{"v":0,"d":"0 €"}},{"$f":"IFERROR(IF(DonnéesProspect[[#This Row],[Prévision \nà court terme]] <>\"\",IF(DonnéesProspect[[#This Row],[Prévision \nà court terme]] = \"Juin\",DonnéesProspect[Prévision \npondérée],0),\"\"),\"\")","v":{"v":0,"d":"0 €"}},{"$f":"IFERROR(IF(DonnéesProspect[[#This Row],[Prévision \nà court terme]] <>\"\",IF(DonnéesProspect[[#This Row],[Prévision \nà court terme]] = \"Juillet\",DonnéesProspect[Prévision \npondérée],0),\"\"),\"\")","v":{"v":0,"d":"0 €"}},{"$f":"IFERROR(IF(DonnéesProspect[[#This Row],[Prévision \nà court terme]] <>\"\",IF(DonnéesProspect[[#This Row],[Prévision \nà court terme]] = \"Août\",DonnéesProspect[Prévision \npondérée],0),\"\"),\"\")","v":{"v":0,"d":"0 €"}},{"$f":"IFERROR(IF(DonnéesProspect[[#This Row],[Prévision \nà court terme]] <>\"\",IF(DonnéesProspect[[#This Row],[Prévision \nà court terme]] = \"Septembre\",DonnéesProspect[Prévision \npondérée],0),\"\"),\"\")","v":{"v":0,"d":"0 €"}},{"$f":"IFERROR(IF(DonnéesProspect[[#This Row],[Prévision \nà court terme]] <>\"\",IF(DonnéesProspect[[#This Row],[Prévision \nà court terme]] = \"Octobre\",DonnéesProspect[Prévision \npondérée],0),\"\"),\"\")","v":{"v":0,"d":"0 €"}},{"$f":"IFERROR(IF(DonnéesProspect[[#This Row],[Prévision \nà court terme]] <>\"\",IF(DonnéesProspect[[#This Row],[Prévision \nà court terme]] = \"Novembre\",DonnéesProspect[Prévision \npondérée],0),\"\"),\"\")","v":{"v":0,"d":"0 €"}},{"$f":"IFERROR(IF(DonnéesProspect[[#This Row],[Prévision \nà court terme]] <>\"\",IF(DonnéesProspect[[#This Row],[Prévision \nà court terme]] = \"Décembre\",DonnéesProspect[Prévision \npondérée],0),\"\"),\"\")","v":{"v":0,"d":"0 €"}}]
[null,{"$f":"IFERROR(IF(AND(DonnéesProspect[[#This Row],[Nom du responsable]] <> \"\", ROW(VentesPrévues[Nom du prospect])<>DernièreEntrée),DonnéesProspect[Nom du responsable], \"\"),\"\")","v":"Alpine Ski House"},{"$f":"IFERROR(IF(DonnéesProspect[[#This Row],[Prévision \nà court terme]] <>\"\",IF(DonnéesProspect[[#This Row],[Prévision \nà court terme]] = \"Janvier\",DonnéesProspect[Prévision \npondérée],0),\"\"),\"\")","v":{"v":0,"d":"0 €"}},{"$f":"IFERROR(IF(DonnéesProspect[[#This Row],[Prévision \nà court terme]] <>\"\",IF(DonnéesProspect[[#This Row],[Prévision \nà court terme]] = \"Février\",DonnéesProspect[Prévision \npondérée],0),\"\"),\"\")","v":{"v":0,"d":"0 €"}},{"$f":"IFERROR(IF(DonnéesProspect[[#This Row],[Prévision \nà court terme]] <>\"\",IF(DonnéesProspect[[#This Row],[Prévision \nà court terme]] = \"Mars\",DonnéesProspect[Prévision \npondérée],0),\"\"),\"\")","v":{"v":20000,"d":"20,000 €"}},{"$f":"IFERROR(IF(DonnéesProspect[[#This Row],[Prévision \nà court terme]] <>\"\",IF(DonnéesProspect[[#This Row],[Prévision \nà court terme]] = \"Avril\",DonnéesProspect[Prévision \npondérée],0),\"\"),\"\")","v":{"v":0,"d":"0 €"}},{"$f":"IFERROR(IF(DonnéesProspect[[#This Row],[Prévision \nà court terme]] <>\"\",IF(DonnéesProspect[[#This Row],[Prévision \nà court terme]] = \"Mai\",DonnéesProspect[Prévision \npondérée],0),\"\"),\"\")","v":{"v":0,"d":"0 €"}},{"$f":"IFERROR(IF(DonnéesProspect[[#This Row],[Prévision \nà court terme]] <>\"\",IF(DonnéesProspect[[#This Row],[Prévision \nà court terme]] = \"Juin\",DonnéesProspect[Prévision \npondérée],0),\"\"),\"\")","v":{"v":0,"d":"0 €"}},{"$f":"IFERROR(IF(DonnéesProspect[[#This Row],[Prévision \nà court terme]] <>\"\",IF(DonnéesProspect[[#This Row],[Prévision \nà court terme]] = \"Juillet\",DonnéesProspect[Prévision \npondérée],0),\"\"),\"\")","v":{"v":0,"d":"0 €"}},{"$f":"IFERROR(IF(DonnéesProspect[[#This Row],[Prévision \nà court terme]] <>\"\",IF(DonnéesProspect[[#This Row],[Prévision \nà court terme]] = \"Août\",DonnéesProspect[Prévision \npondérée],0),\"\"),\"\")","v":{"v":0,"d":"0 €"}},{"$f":"IFERROR(IF(DonnéesProspect[[#This Row],[Prévision \nà court terme]] <>\"\",IF(DonnéesProspect[[#This Row],[Prévision \nà court terme]] = \"Septembre\",DonnéesProspect[Prévision \npondérée],0),\"\"),\"\")","v":{"v":0,"d":"0 €"}},{"$f":"IFERROR(IF(DonnéesProspect[[#This Row],[Prévision \nà court terme]] <>\"\",IF(DonnéesProspect[[#This Row],[Prévision \nà court terme]] = \"Octobre\",DonnéesProspect[Prévision \npondérée],0),\"\"),\"\")","v":{"v":0,"d":"0 €"}},{"$f":"IFERROR(IF(DonnéesProspect[[#This Row],[Prévision \nà court terme]] <>\"\",IF(DonnéesProspect[[#This Row],[Prévision \nà court terme]] = \"Novembre\",DonnéesProspect[Prévision \npondérée],0),\"\"),\"\")","v":{"v":0,"d":"0 €"}},{"$f":"IFERROR(IF(DonnéesProspect[[#This Row],[Prévision \nà court terme]] <>\"\",IF(DonnéesProspect[[#This Row],[Prévision \nà court terme]] = \"Décembre\",DonnéesProspect[Prévision \npondérée],0),\"\"),\"\")","v":{"v":0,"d":"0 €"}}]
[null,{"$f":"IFERROR(IF(AND(DonnéesProspect[[#This Row],[Nom du responsable]] <> \"\", ROW(VentesPrévues[Nom du prospect])<>DernièreEntrée),DonnéesProspect[Nom du responsable], \"\"),\"\")","v":""},{"$f":"IFERROR(IF(DonnéesProspect[[#This Row],[Prévision \nà court terme]] <>\"\",IF(DonnéesProspect[[#This Row],[Prévision \nà court terme]] = \"Janvier\",DonnéesProspect[Prévision \npondérée],0),\"\"),\"\")","v":""},{"$f":"IFERROR(IF(DonnéesProspect[[#This Row],[Prévision \nà court terme]] <>\"\",IF(DonnéesProspect[[#This Row],[Prévision \nà court terme]] = \"Février\",DonnéesProspect[Prévision \npondérée],0),\"\"),\"\")","v":""},{"$f":"IFERROR(IF(DonnéesProspect[[#This Row],[Prévision \nà court terme]] <>\"\",IF(DonnéesProspect[[#This Row],[Prévision \nà court terme]] = \"Mars\",DonnéesProspect[Prévision \npondérée],0),\"\"),\"\")","v":""},{"$f":"IFERROR(IF(DonnéesProspect[[#This Row],[Prévision \nà court terme]] <>\"\",IF(DonnéesProspect[[#This Row],[Prévision \nà court terme]] = \"Avril\",DonnéesProspect[Prévision \npondérée],0),\"\"),\"\")","v":""},{"$f":"IFERROR(IF(DonnéesProspect[[#This Row],[Prévision \nà court terme]] <>\"\",IF(DonnéesProspect[[#This Row],[Prévision \nà court terme]] = \"Mai\",DonnéesProspect[Prévision \npondérée],0),\"\"),\"\")","v":""},{"$f":"IFERROR(IF(DonnéesProspect[[#This Row],[Prévision \nà court terme]] <>\"\",IF(DonnéesProspect[[#This Row],[Prévision \nà court terme]] = \"Juin\",DonnéesProspect[Prévision \npondérée],0),\"\"),\"\")","v":""},{"$f":"IFERROR(IF(DonnéesProspect[[#This Row],[Prévision \nà court terme]] <>\"\",IF(DonnéesProspect[[#This Row],[Prévision \nà court terme]] = \"Juillet\",DonnéesProspect[Prévision \npondérée],0),\"\"),\"\")","v":""},{"$f":"IFERROR(IF(DonnéesProspect[[#This Row],[Prévision \nà court terme]] <>\"\",IF(DonnéesProspect[[#This Row],[Prévision \nà court terme]] = \"Août\",DonnéesProspect[Prévision \npondérée],0),\"\"),\"\")","v":""},{"$f":"IFERROR(IF(DonnéesProspect[[#This Row],[Prévision \nà court terme]] <>\"\",IF(DonnéesProspect[[#This Row],[Prévision \nà court terme]] = \"Septembre\",DonnéesProspect[Prévision \npondérée],0),\"\"),\"\")","v":""},{"$f":"IFERROR(IF(DonnéesProspect[[#This Row],[Prévision \nà court terme]] <>\"\",IF(DonnéesProspect[[#This Row],[Prévision \nà court terme]] = \"Octobre\",DonnéesProspect[Prévision \npondérée],0),\"\"),\"\")","v":""},{"$f":"IFERROR(IF(DonnéesProspect[[#This Row],[Prévision \nà court terme]] <>\"\",IF(DonnéesProspect[[#This Row],[Prévision \nà court terme]] = \"Novembre\",DonnéesProspect[Prévision \npondérée],0),\"\"),\"\")","v":""},{"$f":"IFERROR(IF(DonnéesProspect[[#This Row],[Prévision \nà court terme]] <>\"\",IF(DonnéesProspect[[#This Row],[Prévision \nà court terme]] = \"Décembre\",DonnéesProspect[Prévision \npondérée],0),\"\"),\"\")","v":""}]
[null,{"$f":"IFERROR(IF(AND(DonnéesProspect[[#This Row],[Nom du responsable]] <> \"\", ROW(VentesPrévues[Nom du prospect])<>DernièreEntrée),DonnéesProspect[Nom du responsable], \"\"),\"\")","v":""},{"$f":"IFERROR(IF(DonnéesProspect[[#This Row],[Prévision \nà court terme]] <>\"\",IF(DonnéesProspect[[#This Row],[Prévision \nà court terme]] = \"Janvier\",DonnéesProspect[Prévision \npondérée],0),\"\"),\"\")","v":""},{"$f":"IFERROR(IF(DonnéesProspect[[#This Row],[Prévision \nà court terme]] <>\"\",IF(DonnéesProspect[[#This Row],[Prévision \nà court terme]] = \"Février\",DonnéesProspect[Prévision \npondérée],0),\"\"),\"\")","v":""},{"$f":"IFERROR(IF(DonnéesProspect[[#This Row],[Prévision \nà court terme]] <>\"\",IF(DonnéesProspect[[#This Row],[Prévision \nà court terme]] = \"Mars\",DonnéesProspect[Prévision \npondérée],0),\"\"),\"\")","v":""},{"$f":"IFERROR(IF(DonnéesProspect[[#This Row],[Prévision \nà court terme]] <>\"\",IF(DonnéesProspect[[#This Row],[Prévision \nà court terme]] = \"Avril\",DonnéesProspect[Prévision \npondérée],0),\"\"),\"\")","v":""},{"$f":"IFERROR(IF(DonnéesProspect[[#This Row],[Prévision \nà court terme]] <>\"\",IF(DonnéesProspect[[#This Row],[Prévision \nà court terme]] = \"Mai\",DonnéesProspect[Prévision \npondérée],0),\"\"),\"\")","v":""},{"$f":"IFERROR(IF(DonnéesProspect[[#This Row],[Prévision \nà court terme]] <>\"\",IF(DonnéesProspect[[#This Row],[Prévision \nà court terme]] = \"Juin\",DonnéesProspect[Prévision \npondérée],0),\"\"),\"\")","v":""},{"$f":"IFERROR(IF(DonnéesProspect[[#This Row],[Prévision \nà court terme]] <>\"\",IF(DonnéesProspect[[#This Row],[Prévision \nà court terme]] = \"Juillet\",DonnéesProspect[Prévision \npondérée],0),\"\"),\"\")","v":""},{"$f":"IFERROR(IF(DonnéesProspect[[#This Row],[Prévision \nà court terme]] <>\"\",IF(DonnéesProspect[[#This Row],[Prévision \nà court terme]] = \"Août\",DonnéesProspect[Prévision \npondérée],0),\"\"),\"\")","v":""},{"$f":"IFERROR(IF(DonnéesProspect[[#This Row],[Prévision \nà court terme]] <>\"\",IF(DonnéesProspect[[#This Row],[Prévision \nà court terme]] = \"Septembre\",DonnéesProspect[Prévision \npondérée],0),\"\"),\"\")","v":""},{"$f":"IFERROR(IF(DonnéesProspect[[#This Row],[Prévision \nà court terme]] <>\"\",IF(DonnéesProspect[[#This Row],[Prévision \nà court terme]] = \"Octobre\",DonnéesProspect[Prévision \npondérée],0),\"\"),\"\")","v":""},{"$f":"IFERROR(IF(DonnéesProspect[[#This Row],[Prévision \nà court terme]] <>\"\",IF(DonnéesProspect[[#This Row],[Prévision \nà court terme]] = \"Novembre\",DonnéesProspect[Prévision \npondérée],0),\"\"),\"\")","v":""},{"$f":"IFERROR(IF(DonnéesProspect[[#This Row],[Prévision \nà court terme]] <>\"\",IF(DonnéesProspect[[#This Row],[Prévision \nà court terme]] = \"Décembre\",DonnéesProspect[Prévision \npondérée],0),\"\"),\"\")","v":""}]
[null,{"$f":"IFERROR(IF(AND(DonnéesProspect[[#This Row],[Nom du responsable]] <> \"\", ROW(VentesPrévues[Nom du prospect])<>DernièreEntrée),DonnéesProspect[Nom du responsable], \"\"),\"\")","v":""},{"$f":"IFERROR(IF(DonnéesProspect[[#This Row],[Prévision \nà court terme]] <>\"\",IF(DonnéesProspect[[#This Row],[Prévision \nà court terme]] = \"Janvier\",DonnéesProspect[Prévision \npondérée],0),\"\"),\"\")","v":""},{"$f":"IFERROR(IF(DonnéesProspect[[#This Row],[Prévision \nà court terme]] <>\"\",IF(DonnéesProspect[[#This Row],[Prévision \nà court terme]] = \"Février\",DonnéesProspect[Prévision \npondérée],0),\"\"),\"\")","v":""},{"$f":"IFERROR(IF(DonnéesProspect[[#This Row],[Prévision \nà court terme]] <>\"\",IF(DonnéesProspect[[#This Row],[Prévision \nà court terme]] = \"Mars\",DonnéesProspect[Prévision \npondérée],0),\"\"),\"\")","v":""},{"$f":"IFERROR(IF(DonnéesProspect[[#This Row],[Prévision \nà court terme]] <>\"\",IF(DonnéesProspect[[#This Row],[Prévision \nà court terme]] = \"Avril\",DonnéesProspect[Prévision \npondérée],0),\"\"),\"\")","v":""},{"$f":"IFERROR(IF(DonnéesProspect[[#This Row],[Prévision \nà court terme]] <>\"\",IF(DonnéesProspect[[#This Row],[Prévision \nà court terme]] = \"Mai\",DonnéesProspect[Prévision \npondérée],0),\"\"),\"\")","v":""},{"$f":"IFERROR(IF(DonnéesProspect[[#This Row],[Prévision \nà court terme]] <>\"\",IF(DonnéesProspect[[#This Row],[Prévision \nà court terme]] = \"Juin\",DonnéesProspect[Prévision \npondérée],0),\"\"),\"\")","v":""},{"$f":"IFERROR(IF(DonnéesProspect[[#This Row],[Prévision \nà court terme]] <>\"\",IF(DonnéesProspect[[#This Row],[Prévision \nà court terme]] = \"Juillet\",DonnéesProspect[Prévision \npondérée],0),\"\"),\"\")","v":""},{"$f":"IFERROR(IF(DonnéesProspect[[#This Row],[Prévision \nà court terme]] <>\"\",IF(DonnéesProspect[[#This Row],[Prévision \nà court terme]] = \"Août\",DonnéesProspect[Prévision \npondérée],0),\"\"),\"\")","v":""},{"$f":"IFERROR(IF(DonnéesProspect[[#This Row],[Prévision \nà court terme]] <>\"\",IF(DonnéesProspect[[#This Row],[Prévision \nà court terme]] = \"Septembre\",DonnéesProspect[Prévision \npondérée],0),\"\"),\"\")","v":""},{"$f":"IFERROR(IF(DonnéesProspect[[#This Row],[Prévision \nà court terme]] <>\"\",IF(DonnéesProspect[[#This Row],[Prévision \nà court terme]] = \"Octobre\",DonnéesProspect[Prévision \npondérée],0),\"\"),\"\")","v":""},{"$f":"IFERROR(IF(DonnéesProspect[[#This Row],[Prévision \nà court terme]] <>\"\",IF(DonnéesProspect[[#This Row],[Prévision \nà court terme]] = \"Novembre\",DonnéesProspect[Prévision \npondérée],0),\"\"),\"\")","v":""},{"$f":"IFERROR(IF(DonnéesProspect[[#This Row],[Prévision \nà court terme]] <>\"\",IF(DonnéesProspect[[#This Row],[Prévision \nà court terme]] = \"Décembre\",DonnéesProspect[Prévision \npondérée],0),\"\"),\"\")","v":""}]
[null,{"$f":"IFERROR(IF(AND(DonnéesProspect[[#This Row],[Nom du responsable]] <> \"\", ROW(VentesPrévues[Nom du prospect])<>DernièreEntrée),DonnéesProspect[Nom du responsable], \"\"),\"\")","v":""},{"$f":"IFERROR(IF(DonnéesProspect[[#This Row],[Prévision \nà court terme]] <>\"\",IF(DonnéesProspect[[#This Row],[Prévision \nà court terme]] = \"Janvier\",DonnéesProspect[Prévision \npondérée],0),\"\"),\"\")","v":""},{"$f":"IFERROR(IF(DonnéesProspect[[#This Row],[Prévision \nà court terme]] <>\"\",IF(DonnéesProspect[[#This Row],[Prévision \nà court terme]] = \"Février\",DonnéesProspect[Prévision \npondérée],0),\"\"),\"\")","v":""},{"$f":"IFERROR(IF(DonnéesProspect[[#This Row],[Prévision \nà court terme]] <>\"\",IF(DonnéesProspect[[#This Row],[Prévision \nà court terme]] = \"Mars\",DonnéesProspect[Prévision \npondérée],0),\"\"),\"\")","v":""},{"$f":"IFERROR(IF(DonnéesProspect[[#This Row],[Prévision \nà court terme]] <>\"\",IF(DonnéesProspect[[#This Row],[Prévision \nà court terme]] = \"Avril\",DonnéesProspect[Prévision \npondérée],0),\"\"),\"\")","v":""},{"$f":"IFERROR(IF(DonnéesProspect[[#This Row],[Prévision \nà court terme]] <>\"\",IF(DonnéesProspect[[#This Row],[Prévision \nà court terme]] = \"Mai\",DonnéesProspect[Prévision \npondérée],0),\"\"),\"\")","v":""},{"$f":"IFERROR(IF(DonnéesProspect[[#This Row],[Prévision \nà court terme]] <>\"\",IF(DonnéesProspect[[#This Row],[Prévision \nà court terme]] = \"Juin\",DonnéesProspect[Prévision \npondérée],0),\"\"),\"\")","v":""},{"$f":"IFERROR(IF(DonnéesProspect[[#This Row],[Prévision \nà court terme]] <>\"\",IF(DonnéesProspect[[#This Row],[Prévision \nà court terme]] = \"Juillet\",DonnéesProspect[Prévision \npondérée],0),\"\"),\"\")","v":""},{"$f":"IFERROR(IF(DonnéesProspect[[#This Row],[Prévision \nà court terme]] <>\"\",IF(DonnéesProspect[[#This Row],[Prévision \nà court terme]] = \"Août\",DonnéesProspect[Prévision \npondérée],0),\"\"),\"\")","v":""},{"$f":"IFERROR(IF(DonnéesProspect[[#This Row],[Prévision \nà court terme]] <>\"\",IF(DonnéesProspect[[#This Row],[Prévision \nà court terme]] = \"Septembre\",DonnéesProspect[Prévision \npondérée],0),\"\"),\"\")","v":""},{"$f":"IFERROR(IF(DonnéesProspect[[#This Row],[Prévision \nà court terme]] <>\"\",IF(DonnéesProspect[[#This Row],[Prévision \nà court terme]] = \"Octobre\",DonnéesProspect[Prévision \npondérée],0),\"\"),\"\")","v":""},{"$f":"IFERROR(IF(DonnéesProspect[[#This Row],[Prévision \nà court terme]] <>\"\",IF(DonnéesProspect[[#This Row],[Prévision \nà court terme]] = \"Novembre\",DonnéesProspect[Prévision \npondérée],0),\"\"),\"\")","v":""},{"$f":"IFERROR(IF(DonnéesProspect[[#This Row],[Prévision \nà court terme]] <>\"\",IF(DonnéesProspect[[#This Row],[Prévision \nà court terme]] = \"Décembre\",DonnéesProspect[Prévision \npondérée],0),\"\"),\"\")","v":""}]
[null,"Total",{"$f":"SUBTOTAL(109,VentesPrévues[Janvier \nPrévision])","v":{"v":270000,"d":"270,000 €"}},{"$f":"SUBTOTAL(109,VentesPrévues[Février \nPrévision])","v":{"v":20000,"d":"20,000 €"}},{"$f":"SUBTOTAL(109,VentesPrévues[Mars \nPrévision])","v":{"v":20000,"d":"20,000 €"}},{"$f":"SUBTOTAL(109,VentesPrévues[Avril \nPrévision])","v":{"v":0,"d":"0 €"}},{"$f":"SUBTOTAL(109,VentesPrévues[Mai \nPrévision])","v":{"v":0,"d":"0 €"}},{"$f":"SUBTOTAL(109,VentesPrévues[Juin \nPrévision])","v":{"v":0,"d":"0 €"}},{"$f":"SUBTOTAL(109,VentesPrévues[Juillet \nPrévision])","v":{"v":0,"d":"0 €"}},{"$f":"SUBTOTAL(109,VentesPrévues[Août \nPrévision])","v":{"v":0,"d":"0 €"}},{"$f":"SUBTOTAL(109,VentesPrévues[Septembre \nPrévision])","v":{"v":0,"d":"0 €"}},{"$f":"SUBTOTAL(109,VentesPrévues[Octobre \nPrévision])","v":{"v":0,"d":"0 €"}},{"$f":"SUBTOTAL(109,VentesPrévues[Novembre \nPrévision])","v":{"v":0,"d":"0 €"}},{"$f":"SUBTOTAL(109,VentesPrévues[Décembre \nPrévision])","v":{"v":0,"d":"0 €"}}]
[null,"Total cumulé",{"$f":"C14","v":{"v":270000,"d":"270,000 €"}},{"$f":"C15+D14","v":{"v":290000,"d":"290,000 €"}},{"$f":"D15+E14","v":{"v":310000,"d":"310,000 €"}},{"$f":"E15+F14","v":{"v":310000,"d":"310,000 €"}},{"$f":"F15+G14","v":{"v":310000,"d":"310,000 €"}},{"$f":"G15+H14","v":{"v":310000,"d":"310,000 €"}},{"$f":"H15+I14","v":{"v":310000,"d":"310,000 €"}},{"$f":"I15+J14","v":{"v":310000,"d":"310,000 €"}},{"$f":"J15+K14","v":{"v":310000,"d":"310,000 €"}},{"$f":"K15+L14","v":{"v":310000,"d":"310,000 €"}},{"$f":"L15+M14","v":{"v":310000,"d":"310,000 €"}},{"$f":"M15+N14","v":{"v":310000,"d":"310,000 €"}}]

{"sheet":"Prévision mensuelle pondérée","index":2,"n_rows":3,"n_cols":2,"rows_kept":3,"merged":[[0,5,0,9]]}
[]
[]
[null,"Prévision mensuelle pondérée"]